[Event "European Amateur Chess-ch 2022"]
[Site "Zagreb"]
[Date "2022.08.16"]
[Round "3.16"]
[White "Jakovic, Roko"]
[Black "Peric, Bernard"]
[Result "0-1"]
[ECO "D85"]
[WhiteElo "1921"]
[BlackElo "2112"]
[Annotator "TA"]
[PlyCount "98"]
[EventDate "2022.08.14"]
[EventCountry "CRO"]
[SourceTitle "playchess.com"]
[Source "ChessBase"]
[SourceQuality "1"]
[TimeControl "40/5400+30:1800+30"]

{[%evp 25,97,41,62,-26,-6,-168,-160,-168,-85,-78,-69,-93,-47,-40,-42,-39,-41,-40,-40,-40,-39,-39,-43,-45,-41,-87,-69,-84,-84,-101,-101,-114,-100,-98,-97,-127,-129,-125,-127,-135,-128,-138,-128,-125,-125,-142,-104,-166,-161,-177,-177,-383,-177,-177,0,-394,-177,-363,-365,-373,-243,-297,-286,-275,-161,-252,-237,-495,-474,-446,-416,-29998,-29999,-29999]} 1. d4 Nf6 2. c4 g6 3. Nc3 d5 4. cxd5 Nxd5 5. e4 Nxc3 6. bxc3 Bg7 7. Nf3 Bg4 8. Rb1 c5 9. Be2 O-O 10. O-O cxd4 11. cxd4 Bxf3 12. Bxf3 Bxd4 13. Rxb7 Nc6 14. Ba3 {D85: Exchange Grünfeld: Unusual White 7th moves and lines with 7 Nf3.} (14. Qa4 $1 $14 Qc8 15. Rb5) 14... Qc8 {[#]} 15. Qb1 $146 (15. Rb1 $11 Qa6 {[#]} 16. Bxe7 $1 Bxf2+ 17. Rxf2 Nxe7 18. Qf1 Qxf1+ 19. Rfxf1) ({Predecessor:} 15. Rb3 Rd8 16. Qc1 Qa6 17. e5 Rac8 18. Bxc6 Rxc6 19. Qh6 Bxf2+ 20. Kxf2 Rc2+ 21. Kg1 Qxf1+ 22. Kxf1 Rd1# {0-1 (23) Kobo,O (2534)-Paravyan,D (2617) Chess.com INT 2022}) 15... Bb6 $19 16. Rxe7 {Black is clearly better.} Nxe7 (16... Rb8 $19 17. Qd3 Rd8) 17. Bxe7 $17 Re8 18. Bd6 Qc4 ({Black should try} 18... Qa6 $17 {[%cal Ob6f2] White must now prevent ...Bxf2+!} 19. e5 Rac8) 19. e5 $15 Rac8 20. Bb7 Rcd8 21. Qb3 Qxb3 22. axb3 f6 23. Bc6 {[#]} fxe5 $1 {Hoping for ...Re6.} 24. Bxe8 Rxd6 {[%mdl 4096] Endgame KRB-KRB} 25. b4 (25. g3 $15) 25... Kf8 26. Bb5 Rd4 27. Rb1 Rd2 {Against Rb2} 28. h3 Bxf2+ 29. Kf1 Bd4 {Black is more active.} 30. Be2 Ke7 31. Rc1 Rb2 32. b5 Kf6 33. Rd1 Kg5 34. g3 Kf5 35. Rd3 h5 36. g4+ (36. h4 $17 {was necessary.}) 36... hxg4 $19 37. hxg4+ Kf4 38. Rd1 $2 (38. Rf3+ {was worth a try.} Kxg4 39. Rb3+ Kf4 40. Rxb2 Bxb2 41. Bd1) 38... Rb3 (38... Bb6 $142 39. Ke1 e4) 39. Rd3 Rb2 ({Not} 39... Rxb5 40. Rxd4+ exd4 41. Bxb5 $11) (39... Rb1+ 40. Kg2 Rg1+ 41. Kh3 Re1) 40. Rd1 $1 g5 (40... Bb6 $142 {And now ...g5 would win.} 41. Ke1 e4) 41. Ke1 $2 (41. Rd3) 41... Bb6 42. Kf1 Rb3 {Strongly threatening ...e4.} 43. Ke1 Ba5+ 44. Kf1 Rg3 (44... e4 $142 {Threatens to win with ...Rb2.} 45. Ra1 Bb6) 45. Rd7 (45. Rd3 {is the only way for White.}) 45... Bb6 {[%csl Gb6][%cal Rg3g1]} 46. Rf7+ $2 (46. Ke1) 46... Ke3 {( -> ...Kd2)} 47. Ke1 e4 48. Bd1 (48. Kf1 $19 Kd2 49. Rd7+ Kc3 50. Ke1) 48... Rg1+ 49. Rf1 Ba5# {Weighted Error Value: White=0.62/Black=0.27 (precise)} 0-1

[Event "European Amateur Chess-ch 2022"]
[Site "Zagreb"]
[Date "2022.08.16"]
[Round "3.17"]
[White "Krikunov, Dmitry"]
[Black "Franc, Borna"]
[Result "1/2-1/2"]
[ECO "A14"]
[WhiteElo "2202"]
[BlackElo "2020"]
[Annotator "RC"]
[PlyCount "104"]
[EventDate "2022.08.14"]
[EventCountry "CRO"]
[SourceTitle "playchess.com"]
[Source "ChessBase"]
[SourceQuality "1"]
[TimeControl "40/5400+30:1800+30"]

1. Nf3 Nf6 2. g3 d5 3. Bg2 e6 4. O-O Be7 5. c4 O-O 6. d3 c5 7. Nc3 Nc6 8. a3 a6 9. Qc2 d4 10. Ne4 Nxe4 11. dxe4 e5 12. Ne1 Be6 13. Nd3 f6 14. Bd2 Na5 15. Bxa5 Qxa5 16. b4 Qc7 17. bxc5 Bxc5 18. Rfc1 Rfc8 19. Qa4 Qc6 20. Qxc6 Rxc6 21. f4 Be7 22. fxe5 fxe5 23. Nxe5 Rc5 24. Nd3 Rxc4 25. e5 Rxc1+ 26. Rxc1 Rc8 27. Rb1 Bxa3 28. Bxb7 Rf8 29. Ra1 Be7 30. Rxa6 Bg4 31. Bd5+ Kh8 32. Ra2 Bg5 33. Kg2 g6 34. Bf3 Bf5 35. Nf4 Re8 36. Ra5 Kg7 37. h4 Bxf4 38. gxf4 d3 39. e4 Be6 40. Ra6 Bc4 41. Rd6 Rb8 42. Kf2 Rb2+ 43. Ke3 Rh2 44. h5 gxh5 45. f5 h4 46. f6+ Kg6 47. Rd7 Rh3 48. Rg7+ Kh6 49. Rg2 Rg3 50. Rf2 Kg5 51. Kd2 h3 52. Bh1 Kg6 1/2-1/2

[Event "European Amateur Chess-ch 2022"]
[Site "Zagreb"]
[Date "2022.08.16"]
[Round "3.18"]
[White "Cvitkovic, Filip"]
[Black "Baric, Marko"]
[Result "1/2-1/2"]
[ECO "E20"]
[WhiteElo "2164"]
[BlackElo "1948"]
[Annotator "TA"]
[PlyCount "183"]
[EventDate "2022.08.14"]
[EventCountry "CRO"]
[SourceTitle "playchess.com"]
[Source "ChessBase"]
[SourceQuality "1"]
[TimeControl "40/5400+30:1800+30"]

{[%evp 9,183,-20,-20,-10,34,-16,-10,-6,0,0,0,0,39,39,43,45,52,33,35,0,0,-8,46,48,64,74,61,63,102,101,101,101,105,110,110,97,146,152,233,236,205,54,53,22,88,97,89,89,89,92,90,96,91,89,104,89,174,182,181,165,169,172,167,166,199,127,360,356,445,453,435,415,360,358,822,823,740,822,807,357,773,714,643,405,568,492,527,506,502,524,487,406,321,145,163,0,347,345,92,28,28,28,43,0,0,0,0,0,0,0,55,0,0,0,0,0,0,0,0,0,0,0,0,0,0,0,0,0,0,0,0,0,0,0,0,0,0,0,0,0,0,0,0,0,0,0,0,0,8,8,8,8,8,8,8,8,8,8,8,8,8,0,8,0,0,1,8,0,0,0,0,0,0,0,0,-8]} 1. d4 Nf6 2. c4 e6 3. Nc3 Bb4 4. f3 c5 5. d5 b5 {[%cal Bb7b5,Bb5c4][%mdl 32]} 6. e4 {E20: Nimzo-Indian: 4 g3 and 4 f3.} d6 $1 {[%mdl 4] is now more promising than 6...bxc4.} 7. Nge2 (7. Bd3 $14) 7... bxc4 $11 {Threatening ...exd5.} 8. Nf4 Bxc3+ (8... e5 $5 9. Nfe2 Nbd7 $11) 9. bxc3 e5 10. Ne2 O-O 11. Ng3 $1 {Against Nh5} Nbd7 {[#]} 12. Bxc4 $146 ({Predecessor:} 12. Be3 Nb6 13. Qd2 Ne8 14. Be2 Kh8 15. O-O f5 16. exf5 Bxf5 17. Nxf5 Rxf5 18. a4 {1-0 (58) Harshavardhan,G (2397)-Morefield,J (2227) Chess.com INT 2020}) 12... Qa5 13. Bd2 Ba6 14. Qe2 Bxc4 15. Qxc4 Qc7 (15... g6 $11) 16. O-O $14 {[%cal Bh1f1,Bf1b1,Bb1b5][%mdl 32]} Rab8 17. Nf5 Rfe8 18. Rfb1 {0x0.001b84b636a2dp-1022s more active pieces.} Nb6 19. Qa6 g6 20. Ne3 Qb7 21. Qxb7 Rxb7 22. Rb5 Rbb8 ({Black should play} 22... Ra8) 23. a4 $16 Rec8 (23... a6 $16 {was called for.} 24. Rbb1 Red8) 24. Rab1 $18 Ne8 25. Nc4 $2 Ra8 $14 26. Nb2 {aiming for a5.} Rab8 (26... Nc7 $11 {keeps the balance.} 27. Rb3 c4) 27. a5 $16 Nd7 28. Nc4 $36 {[%mdl 2048] White is on the roll.} Rxb5 29. Rxb5 {Threatens to win with Rb7.} Rb8 {Inhibits Rb7.} 30. Rxb8 Nxb8 {[%mdl 4096] Endgame KBN-KNN} 31. f4 f6 32. fxe5 fxe5 (32... dxe5 $16 33. g4 Kf7) 33. Bg5 Kf7 34. Bd8 Nd7 35. Kf2 Ndf6 36. Kf3 h5 {[#]} 37. Na3 (37. Nb6 $1 $18 {[%mdl 512]}) 37... Ng8 $2 (37... a6 $16) 38. a6 $18 Ne7 39. Nb5 Nc8 40. g4 Kg7 41. Kg3 Nf6 $2 (41... Kf7 42. g5 Kg8) 42. Bxf6+ Kxf6 {KN-KN} 43. Kh4 $1 hxg4 44. Kxg4 (44. c4 $142 Ke7 45. Kg5 (45. Kxg4 Kf8 $14)) 44... Kf7 $2 (44... c4 45. Kh4 Ke7) 45. Kg5 Kg7 46. Nc7 Kf7 47. Ne6 Nb6 48. Nd8+ Kg7 49. Nc6 Nc8 50. h3 c4 51. Nd8 (51. h4 $18 Kf7 52. Nd8+ Kg7 53. Nc6) 51... Nb6 $16 52. h4 $2 (52. Ne6+ $1 $18 Kf7 53. Nd8+ Kg7 54. Ne6+ Kf7 55. Kh6) 52... Nc8 $2 {[%mdl 8192] [#]} (52... Na4 $11 53. Nb7 Nxc3 54. Nxd6 Nxd5 55. Nxc4 (55. exd5 $2 c3 $19) 55... Nf6) 53. Ne6+ $1 $18 Kf7 {[#]} 54. Kg4 (54. Nc7 $1 $16) 54... Nb6 55. Kf3 Kf6 {Strongly threatening ...Na4.} 56. Ke3 Nd7 57. Nc7 {Black must now prevent Nb5.} Nc5 58. Nb5 {[%csl LRa7,LRd6]} Ke7 59. Nxa7 {White wants to mate with Nc6+.} Nxa6 (59... Kd7 $11) 60. Nc6+ (60. Nc8+ $14 Kd7 61. Nb6+ Kc7 62. Nxc4) 60... Kd7 $11 {The position is equal.} 61. Na5 Nc5 62. Nxc4 Na4 $1 {Inhibits Nb2.} 63. Kd2 Nc5 64. Ke3 Na4 $1 {Prevents Nb2.} 65. Nd2 Nxc3 66. Kd3 Na4 67. Ke3 Nc3 68. Kf3 Ke7 69. Kg3 Kf7 70. Kg4 Kf6 71. Kf3 Ke7 72. Ke3 Kd7 73. Kd3 Nb5 74. Nf3 Ke7 75. Kc4 Na3+ 76. Kb4 Nc2+ 77. Kb5 Ne3 78. Kc6 Nc2 79. Kc7 Na3 $1 {[#]} 80. Nxe5 $1 Nb5+ $1 (80... dxe5 $2 81. d6+ Kf6 82. d7 Nb5+ 83. Kb6 $18 (83. Kc8 Nd6+ 84. Kc7 Nf7 $19)) 81. Kb6 Nc3 $1 82. Nxg6+ Kf6 83. h5 {[%cal Oe4e5]} Nxe4 84. Kc6 Kg5 85. Nf4 Kf6 (85... Kxf4 $5 86. h6 Nf6 87. Kxd6 Kf5 $11) 86. Kd7 Ke5 87. Ng6+ Kxd5 88. Ke7 {Hoping for h6.} Ng3 89. Nf4+ Ke4 90. h6 Nf5+ 91. Ke6 {h7 is the strong threat.} Nxh6 92. Kxd6 {White really could win this.  Weighted Error Value: White=0.33/Black=0.33} 1/2-1/2

[Event "European Amateur Chess-ch 2022"]
[Site "Zagreb"]
[Date "2022.08.16"]
[Round "3.19"]
[White "Draganic, Stjepan"]
[Black "Janiszewski, Maciej"]
[Result "1/2-1/2"]
[ECO "D00"]
[WhiteElo "2025"]
[BlackElo "2075"]
[Annotator "NA RC"]
[PlyCount "131"]
[EventDate "2022.08.14"]
[EventCountry "CRO"]
[SourceTitle "playchess.com"]
[Source "ChessBase"]
[SourceQuality "1"]
[TimeControl "40/5400+30:1800+30"]

1. d4 Nf6 2. Bg5 d5 3. e3 c5 4. Bxf6 gxf6 5. c3 e5 6. Nf3 Nc6 7. Bb5 e4 8. Nh4 Qb6 9. Qb3 c4 10. Bxc6+ Qxc6 11. Qc2 Be7 12. g3 Bh3 13. Rg1 h5 14. Nd2 f5 15. b3 cxb3 16. axb3 b5 17. c4 dxc4 18. bxc4 a5 19. c5 a4 20. Qc3 Rg8 21. Ng2 Bxg2 22. Rxg2 f4 23. Kf1 f3 24. Rg1 Qe6 25. Ke1 f5 26. Qb4 Qc6 27. Rb1 Kd7 28. Kd1 Rgb8 29. Kc2 Qd5 30. Rgc1 Kc6 31. Kd1 Bd8 32. Qa3 Bc7 33. Rb2 h4 34. Qa2 Qxa2 35. Rxa2 hxg3 36. fxg3 Rh8 37. Nf1 b4 38. Rd2 Rad8 39. Kc2 Kb5 40. Kb2 Rd5 41. Rdc2 Rh6 42. c6 Kb6 43. Nd2 Rb5 44. h4 b3 45. Rc4 a3+ 46. Kxa3 b2 47. Rb1 Rh8 48. Rb4 Bxg3 49. d5 Rxh4 50. R1xb2 Rxb4 51. Rxb4+ Kc5 52. Rc4+ Kxd5 53. c7 Bxc7 54. Rxc7 f4 55. exf4 Rxf4 56. Re7 Kd4 57. Kb2 f2 58. Kc2 Ke3 59. Nf1+ Ke2 60. Ng3+ Kf3 61. Nf1 Rh4 62. Kd2 Kg2 63. Ke2 Rf4 64. Rg7+ Kh3 65. Rg3+ Kh4 66. Rg2 1/2-1/2

[Event "European Amateur Chess-ch 2022"]
[Site "Zagreb"]
[Date "2022.08.16"]
[Round "3.20"]
[White "Raljic, Mirko"]
[Black "Horvat, Damjan"]
[Result "0-1"]
[ECO "B10"]
[WhiteElo "2023"]
[BlackElo "2072"]
[Annotator "NA RC"]
[PlyCount "114"]
[EventDate "2022.08.14"]
[EventCountry "CRO"]
[SourceTitle "playchess.com"]
[Source "ChessBase"]
[SourceQuality "1"]
[TimeControl "40/5400+30:1800+30"]

1. e4 c6 2. c4 d5 3. exd5 cxd5 4. cxd5 Nf6 5. Qa4+ Nbd7 6. Nc3 g6 7. Be2 Bg7 8. Bf3 O-O 9. d4 Nb6 10. Qb3 Bg4 11. Bxg4 Nxg4 12. Nge2 Nf6 13. d6 Qxd6 14. Bf4 Qd7 15. O-O Nfd5 16. Bd2 Rac8 17. Rac1 Nxc3 18. bxc3 Nc4 19. Bf4 b6 20. h3 Rfe8 21. Rcd1 Qf5 22. Bc1 e5 23. Ng3 Qf6 24. Rfe1 Qc6 25. d5 Qd7 26. Ne4 Kh8 27. a4 f5 28. Ng5 e4 29. d6 Red8 30. h4 h6 31. Nh3 Kh7 32. Qb4 Nxd6 33. Bb2 Rc4 34. Qb3 Qxa4 35. Qxa4 Rxa4 36. Nf4 Be5 37. Ne6 Re8 38. f4 Rxe6 39. fxe5 Nc4 40. Rd7+ Kg8 41. Bc1 Nxe5 42. Rd8+ Kg7 43. Be3 Re7 44. Bd4 Kf7 45. Rh8 Ng4 46. Rd1 e3 47. g3 e2 48. Re1 Ra2 49. Rh7+ Ke6 50. Rxe7+ Kxe7 51. Kg2 Rd2 52. Kf3 Ke6 53. Rxe2+ Rxe2 54. Kxe2 Kd5 55. Kd3 Ne5+ 56. Ke3 g5 57. h5 a5 0-1

[Event "European Amateur Chess-ch 2022"]
[Site "Zagreb"]
[Date "2022.08.16"]
[Round "3.23"]
[White "Pal, Rohan"]
[Black "Okrosa, Marijan"]
[Result "1/2-1/2"]
[ECO "C11"]
[WhiteElo "1935"]
[BlackElo "2059"]
[Annotator "NA RC"]
[PlyCount "55"]
[EventDate "2022.08.14"]
[EventCountry "CRO"]
[SourceTitle "playchess.com"]
[Source "ChessBase"]
[SourceQuality "1"]
[TimeControl "40/5400+30:1800+30"]

1. e4 e6 2. d4 d5 3. Nc3 Nf6 4. e5 Nfd7 5. Nce2 c5 6. c3 cxd4 7. cxd4 f6 8. f4 fxe5 9. dxe5 Bc5 10. Nf3 Nc6 11. g3 O-O 12. Ned4 Nxd4 13. Nxd4 Qb6 14. Be3 Qxb2 15. Be2 Qc3+ 16. Kf2 Nxe5 17. Rc1 Qb2 18. Rc2 Qb6 19. Rxc5 Qxc5 20. Nxe6 Qc6 21. Nxf8 Nc4 22. Qd3 g6 23. Bf3 Nxe3 24. Kxe3 Qc5+ 25. Qd4 Qa3+ 26. Qd3 Qxd3+ 27. Kxd3 Kxf8 28. Bxd5 1/2-1/2

[Event "European Amateur Chess-ch 2022"]
[Site "Zagreb"]
[Date "2022.08.16"]
[Round "3.24"]
[White "Lasic, Luka"]
[Black "Takac, Zvonko"]
[Result "1/2-1/2"]
[ECO "A09"]
[WhiteElo "2077"]
[BlackElo "2040"]
[Annotator "NA RC"]
[PlyCount "236"]
[EventDate "2022.08.14"]
[EventCountry "CRO"]
[SourceTitle "playchess.com"]
[Source "ChessBase"]
[SourceQuality "1"]
[TimeControl "40/5400+30:1800+30"]

1. Nf3 d5 2. c4 d4 3. e3 Nc6 4. exd4 Nxd4 5. Nxd4 Qxd4 6. Nc3 Nf6 7. d3 c6 8. Be3 Qd8 9. d4 g6 10. Be2 Bg7 11. O-O O-O 12. h3 b6 13. Bf3 Bb7 14. Qb3 Qc7 15. Rac1 Rad8 16. Rfe1 Ne8 17. Bg5 Nf6 18. Rcd1 h6 19. Bh4 Rfe8 20. Bg3 Qc8 21. Qa3 Nh5 22. Bxh5 gxh5 23. Be5 f6 24. Bg3 c5 25. dxc5 Rxd1 26. Rxd1 Qc6 27. f3 bxc5 28. Bf2 f5 29. Bxc5 Bxc3 30. bxc3 Kf7 31. Rd5 e6 32. Rd6 Qc7 33. Qxa7 Ra8 34. Qb6 Qxb6 35. Rxb6 Bc8 36. a3 Ba6 37. Bb4 Bxc4 38. Rc6 Bb5 39. Rc7+ Kf6 40. c4 Be8 41. f4 e5 42. fxe5+ Kxe5 43. Kf2 Kd4 44. h4 Ra6 45. Re7 Ba4 46. c5 Rg6 47. g3 Bc6 48. Rf7 Ke5 49. Re7+ Kd4 50. Re1 f4 51. gxf4 Rg2+ 52. Kf1 Rg4 53. Rd1+ Ke3 54. Bd2+ Kf3 55. Rb1 Rxh4 56. Rb3+ Ke4 57. Re3+ Kd4 58. Re5 Rh1+ 59. Ke2 Rh2+ 60. Kd1 Kd3 61. Re3+ Kd4 62. Re1 h4 63. f5 Kxc5 64. f6 Bd5 65. Re7 Rh1+ 66. Ke2 Bc4+ 67. Ke3 Rf1 68. Rc7+ Kd5 69. f7 h3 70. Bb4 h2 71. Rc5+ Ke6 72. Rh5 Kxf7 73. Rxh2 Rf6 74. Kd4 Bf1 75. Bd2 Kg7 76. a4 Ba6 77. Kc5 Kh7 78. Bc3 Rf5+ 79. Kb6 Bd3 80. Rd2 Rf3 81. a5 Be4 82. Bb4 h5 83. Rd4 Rf6+ 84. Bd6 Bf3 85. a6 Kg6 86. a7 Rf7 87. Bc7 Rf6+ 88. Ka5 Bb7 89. Bd6 Rf2 90. Ra4 Rb2 91. Bb4 h4 92. Ra3 Kg5 93. Kb5 Ba8 94. Kc4 Kg4 95. Bd6 Rg2 96. Rb3 h3 97. Rb8 Be4 98. a8=Q Bxa8 99. Rxa8 Kf3 100. Rh8 Rg4+ 101. Kd3 Kg2 102. Ke3 Rg6 103. Be5 Rg5 104. Bf4 Rg7 105. Ra8 Re7+ 106. Kd4 Kf3 107. Bd6 Re2 108. Kd3 Re3+ 109. Kd2 Re2+ 110. Kd1 Re4 111. Rf8+ Kg2 112. Rg8+ Kf1 113. Bb8 h2 114. Rh8 Rd4+ 115. Kc2 Rd8 116. Rxd8 h1=Q 117. Rd1+ Kg2 118. Rxh1 Kxh1 1/2-1/2

[Event "European Amateur Chess-ch 2022"]
[Site "Zagreb"]
[Date "2022.08.16"]
[Round "3.25"]
[White "Faukovic, Matija"]
[Black "Kanizaj, Benjamin"]
[Result "1/2-1/2"]
[ECO "A21"]
[WhiteElo "2026"]
[BlackElo "2050"]
[Annotator "NA RC"]
[PlyCount "58"]
[EventDate "2022.08.14"]
[EventCountry "CRO"]
[SourceTitle "playchess.com"]
[Source "ChessBase"]
[SourceQuality "1"]
[TimeControl "40/5400+30:1800+30"]

1. c4 e5 2. Nc3 Bb4 3. g3 Bxc3 4. bxc3 d6 5. Bg2 c6 6. Nf3 Nf6 7. O-O O-O 8. d3 Nbd7 9. a4 Ne8 10. e4 Nc5 11. Ba3 Bg4 12. h3 Bxf3 13. Bxf3 Ne6 14. d4 c5 15. d5 Ng5 16. Bg2 f5 17. exf5 Rxf5 18. h4 Nf7 19. Qb1 Rf6 20. Be4 h6 21. Qxb7 g5 22. h5 g4 23. Bc1 Ng7 24. Bg6 Rb8 25. Qxa7 Ra8 26. Qb7 Rb8 27. Qa6 Ra8 28. Qb5 Rb8 29. Qc6 Rc8 1/2-1/2

[Event "European Amateur Chess-ch 2022"]
[Site "Zagreb"]
[Date "2022.08.16"]
[Round "4.1"]
[White "Bouget, Alexandre"]
[Black "Starcevic, Ante Leon"]
[Result "1/2-1/2"]
[ECO "D87"]
[WhiteElo "2282"]
[BlackElo "2152"]
[Annotator "NA RC"]
[PlyCount "53"]
[EventDate "2022.08.14"]
[EventCountry "CRO"]
[SourceTitle "playchess.com"]
[Source "ChessBase"]
[SourceQuality "1"]
[TimeControl "40/5400+30:1800+30"]

1. d4 Nf6 2. c4 g6 3. Nc3 d5 4. cxd5 Nxd5 5. e4 Nxc3 6. bxc3 Bg7 7. Bc4 c5 8. Ne2 Nc6 9. Be3 O-O 10. h4 Qa5 $11 11. O-O b6 12. f4 cxd4 13. cxd4 Bg4 14. e5 e6 15. d5 exd5 16. Qxd5 Qxd5 17. Bxd5 Bxe2 18. Bxc6 Bxf1 19. Bxa8 Bc4 20. Bf3 f6 21. Rc1 Bxa2 22. Ra1 Bc4 23. Rxa7 b5 24. e6 Bxe6 25. Rb7 Bc4 26. Bc6 f5 27. Bxb5 1/2-1/2

[Event "European Amateur Chess-ch 2022"]
[Site "Zagreb"]
[Date "2022.08.16"]
[Round "4.2"]
[White "Babic, Zvonko"]
[Black "Vrban, Mladen"]
[Result "1/2-1/2"]
[ECO "C92"]
[WhiteElo "2180"]
[BlackElo "2297"]
[Annotator "TA"]
[PlyCount "25"]
[EventDate "2022.08.14"]
[EventCountry "CRO"]
[SourceTitle "playchess.com"]
[Source "ChessBase"]
[SourceQuality "1"]
[TimeControl "40/5400+30:1800+30"]

{[%evp 24,25,36,0]} 1. e4 e5 2. Nf3 Nc6 3. Bb5 {[%cal Bf1b5,Bb5a4,Ba4b3][%mdl 32]} a6 4. Ba4 Nf6 5. O-O b5 6. Bb3 Be7 7. c3 O-O 8. Re1 d6 9. h3 {[#]} Re8 $146 ({Predecessor:} 9... Nb8 10. d4 Nbd7 11. Nbd2 Bb7 12. Bc2 Re8 13. Nf1 Bf8 14. Ng3 g6 15. Bd2 Bg7 16. Qc1 d5 17. Bg5 dxe4 18. Bxe4 Bxe4 19. Nxe4 exd4 20. cxd4 Qc8 21. Nxf6+ Nxf6 22. Qc6 Qd7 23. Rxe8+ Qxe8 24. Qxc7 {½-½ (44) Esipenko,A (2682)-Kamsky,G (2655) Biel 2022}) 10. Ng5 Rf8 11. Nf3 Re8 12. Ng5 {Recently 12.a3 got a lot of attention.} Rf8 13. Nf3 1/2-1/2

[Event "European Amateur Chess-ch 2022"]
[Site "Zagreb"]
[Date "2022.08.16"]
[Round "4.3"]
[White "Vujec, Ivan"]
[Black "Karlusic, Luka"]
[Result "1-0"]
[ECO "B40"]
[WhiteElo "2192"]
[BlackElo "2089"]
[Annotator "TA"]
[PlyCount "133"]
[EventDate "2022.08.14"]
[EventCountry "CRO"]
[SourceTitle "playchess.com"]
[Source "ChessBase"]
[SourceQuality "1"]
[TimeControl "40/5400+30:1800+30"]

{[%evp 10,133,14,14,12,9,36,37,27,20,35,31,38,37,37,46,47,1,43,12,25,18,21,20,27,35,73,84,99,98,114,110,115,109,106,97,99,87,114,72,60,26,28,26,29,30,27,31,73,83,98,88,88,89,89,88,88,88,115,51,107,35,15,0,0,0,0,0,210,0,0,0,8,0,0,0,23,22,22,23,22,33,25,18,185,8,8,8,8,8,715,616,712,631,439,429,1507,1454,1622,1321,1704,1540,1191,1135,779,738,1181,1054,2216,2231,29960,29961,29959,29947,29973,29974,29971,29970,29987,29988,29989,29990,29993,29994,29994,29995]} 1. e4 c5 2. b3 e6 3. Bb2 d5 4. exd5 exd5 5. Nf3 Nf6 6. Bb5+ Nc6 {B40: Sicilian: 2...e6, Unusual lines.} 7. Qe2+ Be6 8. Bxc6+ bxc6 {White is slightly better.} 9. Ng5 Qd7 {[#]} 10. Nxe6 $146 ({Predecessor:} 10. O-O Be7 11. Nxe6 Qxe6 12. Re1 Qxe2 13. Rxe2 Kd7 14. Nc3 Rhe8 15. Na4 Bd6 16. Rxe8 Rxe8 17. Bxf6 gxf6 {1-0 (54) Kabanov,N (2513)-Csonka,A (2380) Rogaska Slatina 2011}) 10... fxe6 11. d3 Bd6 12. Nd2 {[%cal Bb1d2,Bd2f3,Bf3e5][%mdl 32]} O-O 13. O-O (13. Nf3 $14) 13... Rae8 (13... e5 $5) 14. Be5 Bxe5 15. Qxe5 Ng4 16. Qg5 Nh6 (16... e5 {keeps more tension.} 17. Rae1 h6 18. Qg6 Rf4) 17. Nf3 Nf5 18. Rae1 Rf6 19. Ne5 Qd6 20. Qd2 {White is more active.} Nd4 21. f4 Ref8 22. h4 Nf5 {[%cal Bd4f5,Bf5e3,Be3d5,Bd5c3][%mdl 32]} 23. Qf2 d4 24. Re4 Ne3 25. Re1 {And now R1xe3 would win.} Nd5 {[%cal Rd5f4]} 26. Nc4 (26. g3 {is interesting.} Nc3 27. Qf1 Nxe4 28. dxe4 Qc7 29. Rd1) 26... Rxf4 27. Rxf4 Qxf4 28. Qxf4 Rxf4 29. Rxe6 $11 {[%mdl 4096] Endgame KRN-KRN} Nc3 30. g3 Rf6 31. Rxf6 gxf6 $16 {KN-KN} 32. a3 Kf7 33. Kf2 Ke6 {[#]} 34. Kf3 ({White should try} 34. g4 $1 $16) 34... Nd5 (34... f5 $1 $14) 35. Na5 (35. g4 $16) 35... Ne3 $14 36. c4 Nc2 $1 37. Nxc6 {Threatens to win with b4.} Nxa3 38. Nxa7 Nb1 $2 {[#]} (38... Nc2 $11 {and Black is okay.}) 39. Ke2 $2 (39. b4 $1 $18 {[%cal Rb4c5]}) 39... Nc3+ $11 40. Kd2 Kd7 41. b4 cxb4 {...Kc7 is the strong threat.} 42. Kc2 Kc7 {Strongly threatening ...Kb7.} 43. Kb3 {Black must now prevent Nb5+.} Kb6 {Inhibits Nb5.} 44. Nc8+ Kc5 45. Ne7 Ne2 46. Nf5 h5 $2 (46... Nc1+ $11 47. Kc2 Ne2) 47. Ng7 $2 (47. g4 $18 Nf4 48. gxh5 Nxh5 49. Kc2) 47... Nxg3 (47... Nc1+ $2 48. Kc2 Ne2 49. Nxh5 $18) 48. Ne6+ {[%mdl 64] Deflection} Kd6 49. Nxd4 f5 $2 {[%mdl 8192] Black is on the road to losing.} (49... Ke5 $11 50. Nf3+ Kf4) 50. Nf3 f4 51. d4 Ne4 52. Kxb4 Kc6 (52... Ke6 $142 53. Nh2 Kd6) 53. Kb3 $18 Kd6 54. Kc2 Nf2 55. Ng5 Kc6 56. Kd2 Ng4 57. Kd3 {Hoping for d5+.} Ne3 58. d5+ {[%cal Bd4d5,Bd5d6][%mdl 32]} Kd6 59. Ne4+ Ke5 60. d6 {White mates.} Ke6 61. c5 {[%cal Bc4c5,Bc5c6][%mdl 32]} Nf5 62. Ng5+ Kd7 63. Ke4 {[%csl LRf4,LRf5]} Nxh4 64. Kd5 Ng6 65. c6+ Kc8 66. d7+ Kc7 67. Ne6+ {Weighted Error Value: White=0.22 (precise) /Black=0.38} 1-0

[Event "European Amateur Chess-ch 2022"]
[Site "Zagreb"]
[Date "2022.08.16"]
[Round "4.4"]
[White "Brigljevic, Milan"]
[Black "Denic, Marin"]
[Result "1/2-1/2"]
[ECO "A06"]
[WhiteElo "2161"]
[BlackElo "2190"]
[Annotator "TA"]
[PlyCount "151"]
[EventDate "2022.08.14"]
[EventCountry "CRO"]
[SourceTitle "playchess.com"]
[Source "ChessBase"]
[SourceQuality "1"]
[TimeControl "40/5400+30:1800+30"]

{[%evp 10,151,0,0,0,0,0,0,2,0,0,0,8,4,22,0,0,-14,-16,-11,-10,-14,-11,-17,-4,-40,-39,-51,-52,-91,-72,-77,-55,-47,-33,-49,-60,-44,0,-12,0,2,37,0,0,0,0,0,0,0,29,0,0,0,0,0,0,0,0,-53,-53,-53,-53,-53,0,0,0,0,0,0,0,0,0,0,0,0,0,0,0,0,0,0,0,0,0,0,0,0,0,-11,0,-11,0,-11,0,-11,0,-11,-11,-11,-11,-11,0,-11,-11,-11,0,-11,0,-11,-11,-11,0,-11,0,-11,0,-11,0,-11,0,-11,0,-11,0,-11,0,0,0,0,0,0,0,0,0,0,0,0,0,0,0,0,0,0]} 1. Nf3 d5 2. b3 Bf5 3. Bb2 e6 4. e3 Nf6 5. Be2 h6 6. O-O Bd6 {A06: Réti Opening: 1 Nf3 d5.} 7. d4 O-O 8. c4 c6 9. Bd3 Ne4 10. Nc3 Nd7 11. Qc2 {[%cal Rc3e4]} Ndf6 12. Ne5 Nxc3 13. Bxf5 exf5 14. Bxc3 g6 {[#]} 15. f3 $146 ({Predecessor:} 15. Bb2 Qe7 16. a4 Rfe8 17. Rfe1 Rac8 18. Rac1 Qe6 19. Qd3 h5 20. Rc2 Ng4 21. Nf3 {1-0 (40) Sommer,M (2141)-Vedral,O (2239) Bayern 2009}) 15... Re8 16. Rfe1 Nd7 {[%cal Rd7e5]} 17. f4 Nf6 18. Rad1 Ne4 19. g3 Qe7 20. Nd3 Rac8 21. c5 Bb8 22. b4 h5 23. Nf2 Kg7 {[%cal Bg8g7,Bg7f8,Bf8e7,Be7d7][%mdl 32]} 24. Nxe4 Qxe4 25. Qxe4 Rxe4 26. h4 {[%cal Ob4b5]} Kf8 27. Kf2 Ke7 28. Rb1 Kd7 29. Bd2 Ree8 30. a4 Bc7 31. Rec1 Ra8 32. b5 Reb8 33. Kf3 a6 34. b6 (34. Bc3 $11) 34... Bd8 $15 35. Rh1 Be7 36. Bc3 f6 ({Black should try} 36... Re8 $15) 37. Rh2 {The position is equal.} Rh8 38. Rg1 Rag8 39. Rgh1 Ke6 40. Kf2 Rh7 41. Kf3 Rhg7 42. Be1 Rh7 43. Bf2 Rgh8 44. Rc1 Bd8 45. a5 Rg8 46. Rch1 Rgh8 47. Rc1 Kf7 48. Rd1 g5 49. Re1 Re8 50. Rg1 Rhh8 51. Rhh1 Reg8 52. Re1 Re8 53. Reg1 Kg6 54. Rh2 Rhg8 55. Rgh1 Rh8 56. Rg1 Be7 57. Re1 Bf8 58. Reh1 Bg7 59. Rd1 Bh6 60. Rdh1 Bg7 61. Rd1 Rhg8 62. Rdh1 Rh8 63. Rd1 Reg8 64. Rg1 Bh6 65. Be1 Bf8 66. Bf2 Bh6 67. Be1 gxf4 68. gxf4+ Kf7 69. Rxg8 Rxg8 $11 {[%mdl 4096] Endgame KRB-KRB} 70. Rg2 Rg4 $1 71. Bg3 Ke6 72. Rd2 Bf8 73. Rc2 Be7 74. Rd2 Bf8 75. Rc2 Be7 76. Rd2 {Weighted Error Value: White=0.07 (flawless) /Black=0.06 (flawless)} 1/2-1/2